bitfinex/quotes_BTCUSD_20220111
["timestamp","ask_amount","ask_price","bid_price","bid_amount"]
[1641925127247,0.00089724,42530.0,42529.0,0.90241202]
[1641925127445,0.00298849,42536.0,42530.0,0.65]
[1641925127644,0.00298849,42536.0,42531.0,0.0472]
[1641925127843,0.01005351,42537.0,42531.0,0.0472]
[1641925128445,0.01005351,42537.0,42534.0,0.176266]
[1641925128647,0.01005351,42537.0,42534.0,0.235066]
[1641925129046,0.01005351,42537.0,42536.0,0.377639]
[1641925129849,0.01005351,42537.0,42536.0,0.677639]
[1641925130101,0.00015,42540.0,42537.0,1.11749]
[1641925130292,0.00015,42540.0,42539.0,0.612681]
[1641925130494,0.42,42546.0,42540.0,1.2]
[1641925130694,1.72255,42550.0,42541.0,0.0472]
[1641925130695,0.58465,42550.0,42541.0,0.0472]
[1641925130893,0.29105,42560.0,42550.0,0.38714256]
[1641925130894,0.0122607,42557.0,42550.0,0.38714256]
[1641925131092,0.0122607,42557.0,42553.0,0.0588]
[1641925131293,0.0122607,42557.0,42554.0,0.0588]
[1641925131693,0.01300119,42557.0,42554.0,0.0588]
[1641925131892,0.00015,42560.0,42554.0,0.0588]
[1641925131893,0.00015,42560.0,42555.0,1.2472]
[1641925132093,0.00015,42560.0,42555.0,1.305933]
[1641925132295,0.006,42569.0,42557.0,1.1]
[1641925132501,0.002,42571.0,42569.0,0.0012647]
[1641925132696,0.001,42572.0,42570.0,0.3]
[1641925132894,0.001,42572.0,42571.0,0.0472]
[1641925133093,0.56462864,42574.0,42571.0,0.106]
[1641925133294,0.56462864,42574.0,42571.0,0.0472]
[1641925133493,0.39186925,42580.0,42573.0,0.0588]
[1641925133693,0.00015,42580.0,42574.0,0.0472]
[1641925134147,0.56462864,42583.0,42579.0,1.15]
[1641925134148,0.001,42583.0,42579.0,1.15]
[1641925134348,0.32436547,42585.0,42581.0,0.00128901]
[1641925134548,0.29293686,42585.0,42582.0,0.0472]
[1641925134849,0.004,42589.0,42585.0,0.35]
[1641925135051,0.438,42597.0,42593.0,0.00126613]
[1641925135250,0.88956825,42598.0,42595.0,0.058679]
[1641925135449,0.0200714,42607.0,42599.0,0.377543]
[1641925135649,0.79785613,42605.0,42603.0,0.00129396]
[1641925135848,0.79885613,42605.0,42604.0,0.0472]
[1641925136047,0.79885613,42605.0,42604.0,0.106]
[1641925136253,0.79385613,42605.0,42604.0,0.106]
[1641925136450,1.10175661,42605.0,42604.0,0.106]
[1641925136748,0.30790048,42605.0,42604.0,0.106]
[1641925136948,0.0207781,42607.0,42604.0,0.117]
[1641925137353,0.0200714,42607.0,42605.0,0.05867]
[1641925137605,0.0200714,42607.0,42604.0,0.0698]
[1641925137795,0.0200714,42607.0,42601.0,0.117327]
[1641925137796,0.47875919,42606.0,42602.0,0.0472]
[1641925137995,1.2,42603.0,42602.0,0.0472]
[1641925138196,1.2,42603.0,42592.0,0.0472]
[1641925138197,0.00126433,42602.0,42592.0,0.0472]
[1641925138396,0.00126433,42602.0,42598.0,0.05868]
[1641925138698,0.0200714,42607.0,42598.0,0.05868]
[1641925138897,0.0200714,42607.0,42598.0,0.06668]
[1641925138898,0.00070663,42599.0,42598.0,0.06668]
[1641925139096,0.00070663,42599.0,42598.0,0.444223]
[1641925139900,0.00123999,42606.0,42598.0,0.444223]
[1641925140100,0.00070665,42601.0,42598.0,0.05868]
[1641925140498,0.00070665,42601.0,42600.0,0.49488]
[1641925140900,0.01760421,42607.0,42601.0,0.7]
[1641925141102,0.01477805,42607.0,42601.0,0.7]
[1641925141347,0.00070666,42603.0,42601.0,0.7]
[1641925141547,0.00070666,42603.0,42600.0,0.117337]
[1641925141548,0.00070666,42603.0,42602.0,0.377543]
[1641925141747,0.00070666,42603.0,42600.0,0.117337]
[1641925142149,0.01477805,42607.0,42600.0,0.117337]
[1641925142653,0.01477805,42607.0,42606.0,0.00064219]
[1641925143251,1.69361225,42607.0,42606.0,0.00064219]
[1641925143450,1.74361225,42607.0,42606.0,0.00064219]
[1641925143652,1.79361225,42607.0,42606.0,0.00064219]
[1641925144249,1.64361225,42607.0,42606.0,0.00064219]
[1641925144451,1.69361225,42607.0,42606.0,0.00064219]
[1641925144650,1.26606925,42607.0,42606.0,0.00064219]
[1641925145101,0.01477805,42607.0,42606.0,0.00764219]
[1641925146098,0.01477805,42607.0,42606.0,0.00064219]
[1641925146698,0.11477805,42607.0,42606.0,0.00064219]
[1641925146899,1.64232105,42607.0,42606.0,0.00864219]
[1641925147197,1.63722105,42607.0,42606.0,0.00864219]
[1641925147399,1.73722105,42607.0,42606.0,0.00864219]
[1641925147800,1.63722105,42607.0,42606.0,0.00864219]
[1641925147998,1.2,42606.0,42596.0,0.117357]
[1641925148198,0.058688,42600.0,42592.0,0.117367]
[1641925149044,0.2456106,42596.0,42592.0,0.232267]
[1641925149445,0.05868809,42599.0,42592.0,0.232267]
[1641925149645,0.058689,42598.0,42592.0,0.232267]
[1641925150045,0.058689,42598.0,42593.0,0.0999]
[1641925150450,0.48343469,42597.0,42593.0,0.0999]
[1641925150646,0.58343469,42597.0,42593.0,0.0999]
[1641925150847,0.58343469,42597.0,42586.0,0.00015]
[1641925150848,1.3,42594.0,42586.0,0.00015]
[1641925151050,0.48281555,42591.0,42586.0,0.00015]
[1641925151247,0.48281555,42591.0,42583.0,0.0999]
[1641925151248,0.00120192,42589.0,42583.0,0.0999]
[1641925151548,0.0472,42588.0,42584.0,0.00015]
[1641925151747,0.0587058,42586.0,42584.0,0.00015]
[1641925151950,1.2472,42585.0,42584.0,0.00015]
[1641925152347,1.674743,42585.0,42584.0,0.00015]
[1641925152798,1.674743,42585.0,42582.0,0.00015]
[1641925153000,0.6883187,42584.0,42582.0,0.00015]
[1641925153200,0.6883187,42584.0,42578.0,0.00015]
[1641925153201,0.6,42582.0,42578.0,0.00015]
[1641925153397,0.424743,42581.0,42577.0,0.00084568]
[1641925153598,0.38919417,42580.0,42577.0,0.00084568]
[1641925153797,0.38919417,42580.0,42578.0,0.00015]
[1641925153798,0.424743,42579.0,42578.0,0.00015]
[1641925153996,0.85564719,42579.0,42578.0,0.00015]
[1641925154196,1.31058415,42579.0,42578.0,0.00015]
[1641925154399,1.72328411,42579.0,42578.0,0.00015]
[1641925154597,1.72328411,42579.0,42576.0,0.00084565]
[1641925154798,0.85564719,42579.0,42577.0,0.00015]
[1641925154998,0.28558991,42578.0,42577.0,0.00015]
[1641925155198,0.33278991,42578.0,42577.0,0.00015]
[1641925155898,0.11,42579.0,42578.0,0.00243109]
[1641925156097,0.1572,42579.0,42578.0,0.00243109]
[1641925156348,0.0472,42579.0,42578.0,0.00258109]
[1641925156649,0.51790419,42579.0,42578.0,0.00258109]
[1641925156848,0.0472,42579.0,42578.0,0.00258109]
[1641925157047,0.0472,42579.0,42578.0,0.01958109]
[1641925157247,0.29662856,42579.0,42578.0,0.01958109]
[1641925157450,0.59662856,42579.0,42578.0,0.01958109]
[1641925157649,0.34662856,42579.0,42578.0,0.01958109]
[1641925158150,0.0972,42579.0,42578.0,0.00258109]
[1641925158750,0.1472,42579.0,42578.0,0.00258109]
[1641925158947,0.1472,42579.0,42578.0,0.01358109]
[1641925159147,0.44803416,42579.0,42578.0,0.01358109]
[1641925159550,0.0472,42579.0,42578.0,0.01358109]
[1641925160225,0.0472,42579.0,42578.0,0.00258109]
[1641925160928,0.0472,42579.0,42578.0,0.01358109]
[1641925161527,0.1012908,42583.0,42578.0,0.01358109]
[1641925161726,0.1012908,42583.0,42580.0,0.058707]
[1641925161929,0.0012908,42583.0,42580.0,0.058707]
[1641925162126,0.0012908,42583.0,42580.0,0.058857]
[1641925162328,0.0600008,42583.0,42580.0,0.058857]
[1641925162527,0.39225927,42582.0,42580.0,0.00015]
[1641925162727,0.0600008,42583.0,42580.0,0.00015]
[1641925162927,0.042,42582.0,42580.0,0.009]
[1641925163328,0.042,42582.0,42580.0,0.00915]
[1641925164350,0.05,42582.0,42580.0,0.00015]
[1641925164550,0.0599998,42583.0,42580.0,0.00015]
[1641925164950,0.01,42582.0,42580.0,0.01015]
[1641925166251,0.0012908,42583.0,42580.0,0.00015]
[1641925166653,0.4663415,42583.0,42580.0,0.00015]
[1641925166851,0.5163415,42583.0,42580.0,0.00015]
[1641925167051,0.5163415,42583.0,42580.0,0.024]
[1641925167052,0.11300163,42583.0,42580.0,0.024]
[1641925167451,0.11300163,42583.0,42580.0,0.02415]
[1641925167452,0.05,42582.0,42580.0,0.02415]
[1641925167696,0.12171363,42583.0,42580.0,0.02415]
[1641925167896,0.0042908,42583.0,42580.0,0.02415]
[1641925168398,0.0012908,42583.0,42580.0,0.00015]
[1641925168798,0.0600018,42583.0,42579.0,0.00015]
[1641925168996,0.0630018,42583.0,42580.0,0.023]
[1641925169401,0.0630018,42583.0,42580.0,0.08186]
[1641925169402,0.0042908,42583.0,42580.0,0.08186]
[1641925169599,0.003,42583.0,42580.0,0.08186]
[1641925170202,0.9155,42588.0,42580.0,0.05886]
[1641925170603,0.9105,42588.0,42580.0,0.05886]
[1641925171002,1.0105,42588.0,42580.0,0.08486]
[1641925171208,0.058705,42587.0,42580.0,0.08486]
[1641925171451,0.05984187,42587.0,42580.0,0.08486]
[1641925171651,0.11854487,42587.0,42580.0,0.08486]
[1641925172251,0.00113687,42587.0,42580.0,0.05886]
[1641925173056,0.00113687,42587.0,42580.0,0.09586]
[1641925173757,0.058703,42585.0,42580.0,0.09586]
[1641925174054,0.05983987,42585.0,42580.0,0.09586]
[1641925174255,0.05983987,42585.0,42580.0,0.05886]
[1641925174657,0.05983987,42585.0,42580.0,0.00015]
[1641925175115,0.05996563,42583.0,42580.0,0.021]
[1641925175312,0.377543,42582.0,42580.0,0.021]
[1641925175510,0.377543,42582.0,42580.0,0.02115]
[1641925175511,0.87097045,42582.0,42580.0,0.02115]
[1641925175709,0.05,42581.0,42580.0,0.00025]
[1641925175909,0.72867987,42581.0,42580.0,0.00025]
[1641925176312,0.42867987,42581.0,42580.0,0.00015]
[1641925176710,0.05113687,42581.0,42579.0,0.00015]
[1641925176912,0.00113687,42581.0,42579.0,0.00015]
[1641925177111,0.01213687,42581.0,42580.0,0.009]
[1641925177511,0.01213687,42581.0,42580.0,0.126556]
[1641925178211,0.00113687,42581.0,42580.0,0.117556]
[1641925179047,0.00113687,42581.0,42580.0,0.129556]
[1641925180246,0.00113687,42581.0,42580.0,0.817556]
[1641925180446,0.00113687,42581.0,42580.0,1.195099]
[1641925180947,0.00113687,42581.0,42580.0,1.212099]
[1641925181147,0.0009732,42581.0,42580.0,0.512099]
[1641925182148,0.0009732,42581.0,42580.0,0.762099]
[1641925182350,0.0009732,42581.0,42580.0,0.495099]
[1641925183097,0.0009732,42581.0,42580.0,0.512099]
[1641925184197,0.0009732,42581.0,42580.0,0.495099]
[1641925184599,0.0009732,42581.0,42580.0,0.594999]
[1641925184998,0.0009732,42581.0,42580.0,0.614999]
[1641925185199,0.0009732,42581.0,42580.0,0.714999]
[1641925185399,0.3072,42595.0,42582.0,0.04695]
[1641925185400,0.26207258,42594.0,42582.0,0.04695]
[1641925185599,2.65198987,42597.0,42587.0,0.058691]
[1641925185600,0.26195791,42596.0,42587.0,0.058691]
[1641925185800,0.31195791,42596.0,42587.0,0.058691]
[1641925186099,0.24237892,42595.0,42587.0,0.058691]
[1641925186750,0.1,42596.0,42587.0,0.058691]
[1641925187150,1.0246,42597.0,42587.0,0.074691]
[1641925187349,0.05869421,42594.0,42587.0,0.074691]
[1641925187551,1.033293,42597.0,42587.0,0.074691]
[1641925187751,0.05,42597.0,42587.0,0.074691]
[1641925188052,0.00143631,42600.0,42587.0,0.074691]
[1641925188053,0.00015,42600.0,42594.0,0.058679]
[1641925188450,0.058837,42600.0,42594.0,0.058679]
[1641925188653,0.30937982,42599.0,42594.0,0.058679]
[1641925188951,0.00015,42600.0,42594.0,0.058679]
[1641925189154,0.00015,42600.0,42594.0,0.067679]
[1641925190399,0.00015,42600.0,42594.0,0.058679]
[1641925190998,0.00015,42600.0,42594.0,0.067679]
[1641925191199,0.00015,42600.0,42595.0,0.0999]
[1641925191397,0.00015,42600.0,42597.0,0.05868]
[1641925192099,0.00015,42600.0,42597.0,0.39245861]
[1641925192300,0.00015,42600.0,42599.0,1.15]
[1641925192498,0.00015,42600.0,42599.0,1.527543]
[1641925192998,0.00015,42600.0,42599.0,1.544543]
[1641925193197,0.00015,42600.0,42599.0,1.591743]
[1641925193598,0.00015,42600.0,42599.0,0.591743]
[1641925193846,0.00015,42600.0,42599.0,0.2142]
[1641925194047,0.00015,42600.0,42599.0,0.5642]
[1641925194249,0.00015,42600.0,42599.0,0.5472]
[1641925194851,0.00015,42600.0,42599.0,0.1972]
[1641925195049,0.00015,42600.0,42599.0,0.2142]
[1641925196048,0.00015,42600.0,42599.0,1.0642]
[1641925196347,0.00015,42600.0,42599.0,1.424743]
[1641925196549,0.00015,42600.0,42599.0,1.524643]
[1641925196853,9e-05,42600.0,42599.0,1.524643]
[1641925197048,9e-05,42600.0,42599.0,0.691643]
[1641925197900,9e-05,42600.0,42599.0,1.191643]
[1641925198097,9e-05,42600.0,42599.0,0.691643]
[1641925198297,9e-05,42600.0,42599.0,0.674643]
[1641925198698,0.01467805,42607.0,42600.0,1.1]
[1641925198900,0.01467805,42607.0,42599.0,0.67588339]
[1641925198901,0.00070018,42603.0,42602.0,0.867325]
[1641925199099,0.00070018,42603.0,42602.0,1.064525]
[1641925199301,0.00070018,42603.0,42602.0,1.164425]
[1641925199602,0.00070018,42603.0,42602.0,1.541968]
[1641925199801,0.01467805,42607.0,42602.0,1.541968]
[1641925200003,0.00070024,42605.0,42602.0,1.164425]
[1641925200202,0.00070024,42605.0,42604.0,0.777543]
[1641925200402,0.00070024,42605.0,42604.0,0.924643]
[1641925201102,0.01467805,42607.0,42604.0,0.539643]
[1641925201350,1.23144166,42614.0,42609.0,0.058662]
[1641925201551,0.00280055,42614.0,42609.0,0.058662]
[1641925201751,0.00280055,42614.0,42613.0,1.177543]
[1641925201950,0.00280055,42614.0,42613.0,0.851413]
[1641925202152,0.0457045,42616.0,42613.0,0.851413]
[1641925202350,0.0457045,42616.0,42614.0,0.377543]
[1641925202751,0.0457045,42616.0,42615.0,0.458649]
[1641925202952,0.0457045,42616.0,42615.0,0.436192]
[1641925203354,0.001,42622.0,42619.0,0.00128471]
[1641925203553,0.001,42626.0,42622.0,0.6]
[1641925203754,0.001,42626.0,42621.0,0.55465039]
[1641925203755,0.23419979,42636.0,42635.0,0.00128033]
[1641925203961,0.001,42639.0,42635.0,0.00128033]
[1641925204154,0.001,42639.0,42637.0,0.00122572]
[1641925204155,0.59827168,42638.0,42637.0,0.00122572]
[1641925204352,0.59827168,42638.0,42635.0,0.04848033]
[1641925204756,0.59827168,42638.0,42636.0,0.058621]
[1641925204953,0.59827168,42638.0,42636.0,0.0472]
[1641925204954,0.59327168,42638.0,42636.0,0.0472]
[1641925205409,0.3443791,42646.0,42637.0,1.20123506]
[1641925205607,0.3443791,42646.0,42637.0,0.00123506]
[1641925205807,0.3443791,42646.0,42641.0,0.058616]
[1641925206207,0.0026686,42648.0,42641.0,0.058616]
[1641925206608,0.00238594,42648.0,42641.0,0.058616]
[1641925207107,0.00238594,42648.0,42641.0,0.063616]
[1641925207908,0.00238594,42648.0,42642.0,0.377543]
[1641925208110,0.00238594,42648.0,42644.0,0.058609]
[1641925208512,0.00066933,42647.0,42644.0,0.058609]
[1641925208713,0.00066933,42647.0,42646.0,1.077543]
[1641925208958,0.00066933,42647.0,42646.0,0.377543]
[1641925209158,0.00066933,42647.0,42644.0,0.066609]
[1641925209361,0.42,42664.0,42647.0,1.23662864]
[1641925209559,0.12148703,42672.0,42655.0,0.058589]
[1641925209560,0.00126145,42667.0,42655.0,0.058589]
[1641925209759,0.00126145,42667.0,42660.0,0.00015]
[1641925209964,0.00126145,42667.0,42658.0,0.0372]
[1641925210361,0.85182698,42666.0,42659.0,0.00015]
[1641925210559,0.053604,42665.0,42659.0,0.00015]
[1641925210760,0.058604,42663.0,42659.0,0.00015]
[1641925210961,0.058604,42663.0,42657.0,0.058602]
[1641925211161,0.33136191,42664.0,42659.0,0.004]
[1641925211664,0.32636191,42664.0,42660.0,0.00015]
[1641925212061,0.82969158,42663.0,42660.0,0.00015]
[1641925212261,0.82969158,42663.0,42659.0,0.004]
[1641925212469,0.05,42659.0,42652.0,0.04767716]
[1641925212705,0.00125505,42656.0,42652.0,0.00047716]
[1641925212905,0.43615812,42655.0,42652.0,0.00047716]
[1641925213107,0.32703868,42654.0,42652.0,0.006]
[1641925213308,1.95181412,42653.0,42652.0,0.00684482]
[1641925213506,2.05181412,42653.0,42652.0,0.00684482]
[1641925213705,2.15181412,42653.0,42652.0,0.00684482]
[1641925213906,2.21043512,42653.0,42652.0,0.00684482]
[1641925214307,2.21043512,42653.0,42646.0,0.00015]
[1641925214507,0.058621,42651.0,42646.0,0.00015]
[1641925214906,0.058623,42650.0,42642.0,0.00015]
[1641925215108,0.17587809,42650.0,42646.0,0.01]
[1641925215305,0.29299171,42647.0,42646.0,0.01]
[1641925215506,0.05862413,42649.0,42647.0,0.00015]
[1641925215706,0.05862413,42649.0,42646.0,0.01099489]
[1641925216106,0.117253,42648.0,42647.0,0.00015]
[1641925216353,0.494796,42648.0,42647.0,0.00015]
[1641925216550,0.544796,42648.0,42647.0,0.00015]
[1641925216752,0.894796,42648.0,42647.0,0.00015]
[1641925216952,0.894796,42648.0,42643.0,0.00015]
[1641925217153,0.894796,42648.0,42647.0,0.006]
[1641925217154,0.073625,42648.0,42647.0,0.006]
[1641925217352,0.015,42648.0,42647.0,0.006]
[1641925217553,0.01,42648.0,42647.0,0.00615]
[1641925217756,0.01,42648.0,42647.0,0.383693]
[1641925217952,0.01,42648.0,42647.0,0.00615]
[1641925218354,0.30222478,42652.0,42647.0,0.00015]
[1641925218554,0.35222478,42652.0,42647.0,0.00015]
[1641925218954,1.2,42651.0,42641.0,0.5332279]
[1641925219153,0.35222478,42652.0,42647.0,0.00674983]
[1641925219154,0.73629064,42652.0,42647.0,0.00674983]
[1641925219754,0.79491064,42652.0,42647.0,0.00674983]
[1641925219956,0.73629064,42652.0,42647.0,0.00674983]
[1641925220202,0.4353122,42652.0,42647.0,0.006]
[1641925220403,0.4193122,42652.0,42641.0,0.4159949]
[1641925220602,0.45065831,42653.0,42641.0,0.4159949]
[1641925220800,0.16442629,42656.0,42647.0,0.058615]
[1641925221001,0.28500709,42651.0,42647.0,0.058615]
[1641925221601,0.00036973,42652.0,42647.0,0.058615]
[1641925222502,0.00036973,42652.0,42643.0,0.217129]
[1641925222802,0.00064729,42652.0,42643.0,0.21797396]
[1641925223004,0.05926729,42652.0,42643.0,0.21797396]
[1641925223202,0.06726729,42652.0,42643.0,0.22997396]
[1641925223605,0.353828,42651.0,42643.0,0.22997396]
[1641925223850,0.008,42652.0,42643.0,0.229129]
[1641925224052,0.00864724,42652.0,42643.0,0.22997394]
[1641925224451,0.28325811,42650.0,42643.0,0.21797394]
[1641925225051,0.00127865,42653.0,42643.0,0.117229]
[1641925225252,0.00127865,42653.0,42649.0,0.0999]
[1641925225253,0.008,42650.0,42649.0,0.0999]
[1641925226052,0.008,42650.0,42649.0,0.536056]
[1641925226453,0.00064729,42652.0,42649.0,0.536056]
[1641925226853,0.00064729,42652.0,42651.0,0.0999]
[1641925227451,0.00015,42660.0,42651.0,0.0999]
[1641925227701,0.00064731,42654.0,42651.0,0.0999]
[1641925228204,0.05860975,42658.0,42651.0,0.0999]
[1641925228399,0.13613147,42658.0,42655.0,0.0999]
[1641925228601,0.00122561,42656.0,42655.0,0.0999]
[1641925228800,1.62596861,42656.0,42655.0,0.0999]
[1641925229099,0.77884931,42656.0,42655.0,0.1029]
[1641925229299,0.44896861,42656.0,42655.0,0.1029]
[1641925229500,0.07142561,42656.0,42655.0,0.1029]
[1641925229700,0.47142561,42656.0,42655.0,0.1029]
[1641925229900,0.84896861,42656.0,42655.0,0.1029]
[1641925230499,1.07073453,42656.0,42655.0,0.0999]
[1641925230703,1.07073453,42656.0,42644.0,0.00015]
[1641925230901,0.75180353,42656.0,42644.0,0.10005]
[1641925231100,0.84480353,42656.0,42644.0,0.01015]
[1641925231346,0.84480353,42656.0,42649.0,0.0999]
[1641925231751,0.40023656,42653.0,42650.0,0.00015]
[1641925231950,0.424743,42652.0,42650.0,0.00015]
[1641925232150,0.42597038,42652.0,42650.0,0.00015]
[1641925232350,0.42597038,42652.0,42649.0,0.00099485]
[1641925232554,0.42597038,42652.0,42649.0,0.00084485]
[1641925232751,0.45279846,42651.0,42650.0,0.00015]
[1641925233050,0.92754146,42651.0,42650.0,0.00015]
[1641925233951,0.92754146,42651.0,42648.0,0.00084486]
[1641925233952,0.058622,42650.0,42649.0,0.00015]
[1641925234150,1.383365,42650.0,42649.0,0.00015]
[1641925234551,1.683365,42650.0,42649.0,0.00015]
[1641925234751,1.733365,42650.0,42649.0,0.00015]
[1641925234951,2.422765,42650.0,42647.0,0.00084487]
[1641925235207,2.422765,42650.0,42637.0,0.00015]
[1641925235208,0.05864223,42643.0,42637.0,0.00015]
[1641925235407,0.058645,42641.0,42637.0,0.00015]
[1641925235604,0.00121827,42639.0,42627.0,0.0003]
[1641925235804,0.39256644,42634.0,42627.0,0.0003]
[1641925236008,0.0472,42633.0,42630.0,0.058641]
[1641925236204,0.0472,42632.0,42630.0,0.058641]
[1641925236407,0.0472,42632.0,42631.0,0.00015]
[1641925238207,0.0472,42632.0,42627.0,0.0003]
[1641925238208,0.105846,42632.0,42627.0,0.0003]
[1641925238409,0.11729211,42630.0,42627.0,0.0003]
[1641925238611,0.28488911,42628.0,42627.0,0.0003]
[1641925238849,0.33208911,42628.0,42627.0,0.0003]
[1641925239252,0.33708911,42628.0,42627.0,0.0003]
[1641925239451,0.0522,42628.0,42627.0,0.0003]
[1641925240452,0.68472888,42628.0,42627.0,0.0003]
[1641925240958,0.73472888,42628.0,42625.0,0.00075004]
[1641925241154,0.43172888,42628.0,42625.0,0.00075004]
[1641925241353,0.43172888,42628.0,42626.0,0.0003]
[1641925242153,0.43172888,42628.0,42625.0,0.00075005]
[1641925242604,0.48837788,42628.0,42625.0,0.00075005]
[1641925242801,0.48337788,42628.0,42625.0,0.00075005]
[1641925243001,0.48337788,42628.0,42624.0,0.0003]
[1641925243203,0.48537788,42628.0,42624.0,0.00105005]
[1641925243602,0.48537788,42628.0,42625.0,0.0003]
[1641925243804,0.53537788,42628.0,42625.0,0.0003]
[1641925244203,0.256502,42628.0,42625.0,0.0003]
[1641925244403,0.21815281,42628.0,42625.0,0.0003]
[1641925244603,0.21815281,42628.0,42624.0,0.00075005]
[1641925244604,0.05990183,42633.0,42624.0,0.00105005]
[1641925244803,0.058643,42633.0,42625.0,0.377543]
[1641925245003,0.058643,42633.0,42625.0,0.377843]
[1641925245204,0.34345932,42633.0,42626.0,0.0003]
[1641925245406,0.05552982,42639.0,42630.0,0.41749353]
[1641925245605,0.675935,42644.0,42630.0,0.41749353]
[1641925245606,0.293208,42644.0,42630.0,0.41749353]
[1641925245806,0.3085,42645.0,42631.0,0.00015]
[1641925245807,0.558627,42645.0,42631.0,0.00015]
[1641925246005,0.558627,42645.0,42632.0,0.00123577]
[1641925246353,1.1748,42647.0,42634.0,0.49705028]
[1641925246552,0.0012885,42655.0,42643.0,0.117234]
[1641925246755,0.42813,42659.0,42644.0,0.36310075]
[1641925246756,0.5,42659.0,42644.0,0.36310075]
[1641925246955,0.00069571,42656.0,42644.0,0.36310075]
[1641925247151,0.008,42655.0,42644.0,0.36310075]
[1641925247353,0.008,42655.0,42644.0,0.61577027]
[1641925247551,0.008,42655.0,42652.0,0.3426462]
[1641925247951,0.008,42655.0,42653.0,0.377543]
[1641925248152,0.008,42655.0,42648.0,0.00125035]
[1641925248353,0.008,42655.0,42649.0,0.377543]
[1641925248553,0.00069603,42656.0,42649.0,0.377543]
[1641925248755,0.05931003,42656.0,42645.0,0.10066062]
[1641925248956,0.05931003,42656.0,42646.0,0.377543]
[1641925249153,0.03,42656.0,42651.0,0.058613]
[1641925249355,0.03,42656.0,42652.0,0.377543]
[1641925249356,0.08069707,42656.0,42652.0,0.377543]
[1641925249554,0.03069707,42656.0,42652.0,0.377543]
[1641925250202,0.03,42656.0,42653.0,0.40994341]
[1641925250403,0.03069715,42656.0,42654.0,0.436151]
[1641925250606,0.00069715,42656.0,42654.0,0.436151]
[1641925251204,0.00069715,42656.0,42654.0,0.445151]
[1641925251406,0.00115,42660.0,42654.0,0.445151]
[1641925251607,0.00069716,42657.0,42654.0,0.067608]
[1641925251905,0.00069716,42657.0,42655.0,0.377543]
[1641925252106,0.00069716,42657.0,42654.0,0.067608]
[1641925252506,0.00069716,42657.0,42654.0,0.058608]
[1641925252706,0.00115,42660.0,42654.0,0.058608]
[1641925252907,0.00069705,42658.0,42654.0,0.058608]
[1641925253306,0.00069705,42658.0,42654.0,0.069608]
[1641925253949,0.058608,42659.0,42654.0,0.069608]
[1641925254152,0.00069706,42658.0,42654.0,0.069608]
[1641925254350,0.00069706,42658.0,42654.0,0.058608]
[1641925255153,0.00115,42660.0,42657.0,0.37876106]
[1641925255351,0.00115,42660.0,42657.0,1.09594206]
[1641925255352,0.00069706,42658.0,42657.0,1.09594206]
[1641925255752,0.00069706,42658.0,42657.0,0.49594206]
[1641925256355,0.00115,42660.0,42657.0,0.49594206]
[1641925256356,0.00115,42660.0,42657.0,0.64594206]
[1641925256555,0.00184708,42660.0,42659.0,1.577543]
[1641925256858,0.00278792,42666.0,42659.0,1.677443]
[1641925257055,0.00278792,42666.0,42659.0,1.777443]
[1641925257255,0.00278792,42666.0,42665.0,1.06131804]
[1641925257455,0.003,42671.0,42665.0,1.06131804]
[1641925257456,0.003,42671.0,42665.0,1.17029204]
[1641925257703,0.003,42671.0,42666.0,0.377543]
[1641925257902,0.003,42671.0,42666.0,0.0999]
[1641925258303,0.003,42671.0,42667.0,0.377543]
[1641925258504,0.003,42671.0,42668.0,0.058578]
[1641925258702,0.003,42671.0,42669.0,0.377543]
[1641925258901,0.003,42671.0,42668.0,0.058578]
[1641925259304,0.003,42671.0,42669.0,0.689543]
[1641925259505,0.003,42671.0,42669.0,0.389543]
[1641925260503,0.2503543,42670.0,42669.0,0.377543]
[1641925260709,0.93693174,42670.0,42666.0,0.0999]
[1641925260904,3.44865322,42670.0,42664.0,0.117178]
[1641925261107,0.93693174,42670.0,42664.0,0.117178]
[1641925261347,0.68734813,42670.0,42667.0,0.058591]
[1641925261550,0.377543,42669.0,42666.0,0.02]
[1641925261749,0.37884201,42669.0,42666.0,0.02]
[1641925262153,0.43750057,42656.0,42655.0,0.0999]
[1641925262449,0.65669459,42662.0,42656.0,0.058606]
[1641925262649,0.35688072,42662.0,42655.0,0.0999]
[1641925262850,0.058605,42660.0,42655.0,0.0999]
[1641925263048,0.35688072,42662.0,42655.0,0.0999]
[1641925263247,0.35688072,42662.0,42655.0,0.1519]
[1641925263448,0.29249943,42664.0,42655.0,0.1519]
[1641925263647,0.29249943,42664.0,42658.0,0.0586]
[1641925263648,0.00062059,42662.0,42658.0,0.0586]
[1641925263847,0.25314552,42662.0,42658.0,0.0586]
[1641925264247,0.00062059,42662.0,42658.0,0.0586]
[1641925264648,0.05860456,42662.0,42658.0,0.0586]
[1641925264852,0.05922518,42662.0,42656.0,0.335221]
[1641925265112,0.28710662,42661.0,42656.0,0.335221]
[1641925265302,0.28710662,42661.0,42658.0,0.049]
[1641925265701,0.00062062,42662.0,42658.0,0.049]
[1641925265901,0.32721833,42663.0,42658.0,0.107602]
[1641925266102,0.00062061,42662.0,42658.0,0.107602]
[1641925266302,0.05922461,42662.0,42658.0,0.049]
[1641925266502,0.05922461,42662.0,42656.0,0.335221]
[1641925266503,0.00062061,42662.0,42656.0,0.335221]
[1641925266703,0.00062061,42662.0,42657.0,0.117195]
[1641925266905,0.05922488,42662.0,42656.0,0.335221]
[1641925267104,0.3880115,42661.0,42656.0,0.335221]
[1641925267304,0.058605,42660.0,42657.0,0.052]
[1641925267705,0.27851683,42659.0,42657.0,0.052]
[1641925268507,0.27851683,42659.0,42656.0,0.335221]
[1641925268862,0.00062058,42662.0,42659.0,0.058595]
[1641925269260,0.00062058,42662.0,42660.0,0.377543]
[1641925269462,0.05859603,42668.0,42660.0,0.377543]
[1641925269662,0.00062063,42663.0,42659.0,0.058595]
[1641925270661,0.00089041,42662.0,42659.0,0.058595]
[1641925271261,0.00089041,42662.0,42659.0,0.082595]